bitfinex/quotes_ETHUSD_20240811
["timestamp","ask_amount","ask_price","bid_price","bid_amount"]
[1723379425799,2.64375,2647.8,2647.3,3.1131575]
[1723379425998,7.3,2647.9,2647.3,3.1131575]
[1723379426305,7.3,2647.9,2647.5,2.644]
[1723379426491,7.3,2647.9,2647.5,5.28794]
[1723379426692,7.3,2647.9,2647.5,2.64393]
[1723379426931,7.3,2647.9,2647.5,5.28787]
[1723379427118,7.3,2647.9,2647.5,5.28788]
[1723379427298,7.3,2647.9,2647.6,0.758038]
[1723379429084,2.64344,2648.1,2647.6,0.758038]
[1723379429285,2.64376,2647.8,2647.4,2.2925]
[1723379429484,5.28752,2647.8,2647.4,2.2925]
[1723379429728,2.64376,2647.8,2647.4,2.2925]
[1723379430812,5.28752,2647.8,2647.4,2.2925]
[1723379431126,2.64376,2647.8,2647.4,2.786169]
[1723379432330,2.64376,2647.8,2647.4,2.2925]
[1723379432625,5.28753,2647.8,2647.4,2.2925]
[1723379433011,2.64376,2647.8,2647.2,4.9367]
[1723379433216,2.3693,2648.1,2647.2,2.2925]
[1723379433529,2.3693,2648.1,2646.4,3.0]
[1723379433530,2.64409,2647.5,2646.9,2.2925]
[1723379433830,7.3,2647.7,2647.0,2.64443]
[1723379434123,2.64395,2647.6,2647.1,2.64434]
[1723379434430,9.94381,2647.7,2647.2,4.93674]
[1723379434633,7.3,2647.7,2647.2,5.7442143]
[1723379435228,7.3,2647.7,2647.2,2.2925]
[1723379436629,7.3,2647.7,2647.2,4.93674]
[1723379436803,9.9438,2647.7,2647.2,2.2925]
[1723379437004,2.64391,2647.6,2647.2,2.2925]
[1723379437218,2.644,2647.5,2647.0,0.493693]
[1723379437424,2.644,2647.5,2645.9,2.64555]
[1723379437425,2.6442,2647.3,2646.8,2.2925]
[1723379437622,5.01336,2647.5,2646.9,0.55]
[1723379437919,12.58775,2647.7,2647.0,2.64447]
[1723379438128,12.58775,2647.7,2647.2,2.2925]
[1723379438129,9.94385,2647.7,2647.2,2.2925]
[1723379438445,7.3,2647.7,2647.3,2.64419]
[1723379438649,7.3,2647.7,2647.3,3.4892327]
[1723379438937,2.64399,2647.6,2647.2,2.2925]
[1723379439120,2.64399,2647.6,2647.1,0.55]
[1723379439829,2.64401,2647.5,2647.1,0.55]
[1723379440195,9.94385,2647.7,2647.1,3.19434]
[1723379440501,9.94385,2647.7,2647.2,3.457366]
[1723379440701,9.94385,2647.7,2647.2,0.813126]
[1723379440937,2.64391,2647.6,2647.1,3.1944]
[1723379441302,9.94385,2647.7,2647.1,3.1944]
[1723379441514,7.3,2647.7,2647.1,0.55]
[1723379441813,2.64397,2647.6,2647.1,0.55]
[1723379442028,2.64397,2647.6,2647.1,3.19435]
[1723379442225,7.3,2647.7,2647.2,2.6443]
[1723379442439,7.3,2647.7,2647.3,2.6442]
[1723379443245,7.3,2647.7,2647.4,5.08399]
[1723379443450,7.3,2647.7,2647.4,5.86432327]
[1723379443946,26.03720542,2647.9,2647.4,5.86432327]
[1723379444145,22.41362,2647.9,2647.4,5.86432327]
[1723379444448,23.39358542,2647.9,2647.5,0.55]
[1723379444651,2.64356,2648.0,2647.5,0.55]
[1723379444802,4.93211351,2647.9,2647.5,4.09973733]
[1723379445007,7.3,2648.1,2647.5,4.09973733]
[1723379445008,13.56868487,2648.1,2647.6,2.64389]
[1723379445207,4.93206801,2648.0,2647.7,2.64377]
[1723379445448,7.3,2648.1,2647.7,0.67434973]
[1723379445449,13.56871487,2648.1,2647.7,0.67434973]
[1723379445650,13.56871487,2648.1,2647.6,2.64389]
[1723379446347,4.93204378,2648.0,2647.6,2.64389]
[1723379446643,4.93204378,2648.0,2647.6,2.64384]
[1723379446846,10.92527487,2648.1,2647.7,5.08364]
[1723379447625,10.92527487,2648.1,2647.7,2.64374]
[1723379447944,10.92527487,2648.1,2647.5,5.63388]
[1723379448144,4.93205564,2648.0,2647.5,5.58388]
[1723379448359,10.92491742,2648.1,2647.6,2.64383]
[1723379448526,4.93169653,2648.0,2647.6,2.64383]
[1723379449241,3.62491742,2648.0,2647.6,2.64383]
[1723379449632,10.92491742,2648.1,2647.6,2.64383]
[1723379449825,4.93170991,2648.0,2647.6,2.64383]
[1723379450024,3.62491742,2648.0,2647.6,2.64383]
[1723379450226,4.93168744,2648.1,2647.7,0.55]
[1723379450454,4.93168744,2648.0,2647.7,0.55]
[1723379450658,3.62491742,2648.0,2647.7,3.19379]
[1723379450816,0.1273271,2648.2,2647.7,3.19379]
[1723379450817,3.75224452,2648.2,2647.9,5.08348]
[1723379451019,1.30668251,2648.1,2648.0,0.55]
[1723379451260,0.1273271,2648.2,2648.0,3.7887859]
[1723379452856,0.1273271,2648.2,2648.1,2.6434]
[1723379453064,0.1273271,2648.2,2648.1,3.1934]
[1723379453230,0.1273271,2648.2,2648.1,9.1714535]
[1723379453968,0.1273271,2648.2,2648.1,0.55]
[1723379454258,0.1273271,2648.2,2648.0,3.19346]
[1723379454625,0.1273271,2648.2,2647.4,2.4399]
[1723379454626,2.64346,2648.1,2647.4,2.4399]
[1723379454938,8.4455774,2648.1,2647.4,2.4399]
[1723379455155,2.64361,2647.9,2647.4,2.4399]
[1723379455682,2.4223271,2648.2,2647.4,5.08394]
[1723379455824,9.99384033,2648.2,2647.6,2.64383]
[1723379456151,5.0656771,2648.2,2647.7,0.55]
[1723379456460,2.6437,2647.8,2647.4,2.4399]
[1723379456636,2.64354,2648.0,2647.4,2.4399]
[1723379456962,1.30683189,2648.1,2647.1,2.4399]
[1723379456963,2.64396,2647.6,2647.1,2.4399]
[1723379457135,2.64394,2647.6,2646.8,5.08455]
[1723379457333,2.64413,2647.4,2646.8,5.08455]
[1723379458081,0.528771,2647.6,2646.8,2.4399]
[1723379458369,0.528771,2647.6,2646.9,2.64459]
[1723379458370,3.05907421,2647.5,2646.9,2.64459]
[1723379458770,3.6213711,2647.8,2647.2,2.64423]
[1723379458976,1.30700966,2647.8,2647.5,2.64397]
[1723379459139,19.49,2648.1,2647.5,2.64397]
[1723379459140,10.92466584,2648.1,2647.5,2.71950487]
[1723379459337,7.3,2648.1,2647.6,2.64389]
[1723379459775,9.94341,2648.1,2647.5,2.64397]
[1723379459949,9.94341,2648.1,2647.6,0.55]
[1723379460776,2.64356,2648.0,2647.5,0.55]
[1723379461279,2.64356,2648.0,2647.0,2.64449]
[1723379461280,2.6439,2647.6,2647.0,2.64449]
[1723379461658,2.6439,2647.6,2646.8,2.64467]
[1723379461659,2.64403,2647.5,2646.8,2.64462]
[1723379461979,2.6439,2647.6,2646.8,2.64462]
[1723379461980,2.64412,2647.4,2646.8,2.64462]
[1723379462183,2.64412,2647.4,2646.8,3.4440054]
[1723379462685,2.64407,2647.5,2646.8,0.7993854]
[1723379462976,2.64407,2647.5,2646.7,0.264484]
[1723379462977,2.64404,2647.5,2646.7,2.909214]
[1723379463356,2.64412,2647.4,2646.8,2.6447]
[1723379463555,2.64412,2647.4,2646.8,2.64469]
[1723379463757,2.64412,2647.4,2646.8,3.1795974]
[1723379464072,2.64412,2647.4,2646.9,0.55]
[1723379464787,2.64473,2646.8,2646.2,2.3908]
[1723379465169,2.64492,2646.6,2646.3,0.0553983]
[1723379465487,2.64492,2646.6,2646.2,2.3908]
[1723379465664,2.64492,2646.6,2646.4,0.05532207]
[1723379465845,2.64492,2646.6,2645.9,2.3908]
[1723379465846,0.528967,2646.6,2645.9,2.3908]
[1723379466046,8.62420632,2647.0,2646.5,0.05524584]
[1723379466286,2.64507,2646.5,2645.9,7.68187]
[1723379466496,2.6449,2646.6,2646.0,2.64549]
[1723379466791,2.64475,2646.8,2646.0,2.70111705]
[1723379466792,2.64481,2646.7,2646.0,2.70111705]
[1723379466991,2.64481,2646.7,2646.1,2.64538]
[1723379467360,2.64481,2646.7,2646.2,0.05547455]
[1723379467608,2.64491,2646.6,2646.2,0.05547455]
[1723379467786,2.6451,2646.4,2646.2,0.05547455]
[1723379467966,2.6452,2646.3,2645.7,2.64578]
[1723379468151,2.6454,2646.1,2645.8,0.05658976]
[1723379468352,2.6454,2646.1,2645.4,2.64604]
[1723379468353,2.6454,2646.1,2645.5,2.910594]
[1723379468578,2.64568,2645.9,2645.6,0.05674231]
[1723379468782,0.23566,2646.4,2644.7,0.59216688]
[1723379468992,0.23566,2646.4,2645.7,2.64571]
[1723379469291,2.64521,2646.3,2645.7,2.64571]
[1723379469497,2.64521,2646.3,2645.5,2.64595]
[1723379469701,2.64538,2646.2,2645.6,2.64589]
[1723379469919,2.64577,2645.8,2645.6,0.04656868]
[1723379470197,2.646,2645.6,2644.9,2.64652]
[1723379470397,2.6458,2645.7,2645.0,0.503732]
[1723379470557,2.6458,2645.7,2645.0,0.04305318]
[1723379470762,2.64608,2645.5,2644.9,2.64652]
[1723379470963,2.64608,2645.5,2644.8,2.3908]
[1723379470964,2.64621,2645.3,2644.8,2.3908]
[1723379471264,2.64621,2645.3,2644.9,0.04311041]
[1723379471586,2.64608,2645.5,2644.8,2.64669]
[1723379471587,2.64606,2645.5,2644.8,2.64669]
[1723379471900,2.64606,2645.5,2644.9,2.68968041]
[1723379471901,2.6461,2645.4,2644.9,2.68968041]
[1723379472216,2.6459,2645.6,2645.0,2.64648]
[1723379472357,2.6459,2645.6,2644.9,2.68968041]
[1723379472693,2.6459,2645.6,2645.1,2.6464]
[1723379472863,5.29188,2645.6,2644.9,2.64652]
[1723379473074,2.6459,2645.6,2645.2,0.04324066]
[1723379473278,2.6459,2645.6,2645.0,2.64647]
[1723379473473,2.6459,2645.6,2645.3,0.04318344]
[1723379473708,2.6459,2645.6,2645.1,0.55]
[1723379473916,2.6459,2645.6,2645.4,0.04313059]
[1723379474113,2.6459,2645.6,2645.1,0.55]
[1723379474336,5.29187,2645.6,2645.5,0.04307337]
[1723379474476,2.64602,2645.5,2645.1,0.55]
[1723379474678,2.6461,2645.4,2644.7,2.64676]
[1723379474901,2.6461,2645.4,2645.2,0.04324066]
[1723379475101,2.91071,2645.4,2645.2,0.04324066]
[1723379475290,2.91071,2645.4,2644.7,2.64676]
[1723379475491,2.6461,2645.4,2644.8,0.55]
[1723379475711,2.6461,2645.4,2644.8,0.59346961]
[1723379476092,2.64639,2645.2,2644.8,0.59346961]
[1723379476402,0.500299,2645.1,2644.8,0.04346961]
[1723379476594,2.64639,2645.2,2644.6,0.55]
[1723379476788,2.64639,2645.2,2644.7,0.03798737]
[1723379477116,2.6467,2644.8,2644.7,0.03798737]
[1723379477286,7.64951,2645.1,2644.7,0.03798737]
[1723379477486,5.00303,2645.1,2644.4,2.64701]
[1723379477805,2.64651,2645.0,2644.4,2.64701]
[1723379478117,2.64651,2645.0,2644.5,0.03554649]
[1723379478823,2.6466,2644.9,2644.5,0.03554649]
[1723379478988,5.00303,2645.1,2644.5,0.03554649]
[1723379479625,2.64656,2645.0,2644.5,0.03554649]
[1723379480284,5.00303,2645.1,2644.5,3.23254649]
[1723379480483,5.00303,2645.1,2644.5,0.58554649]
[1723379480725,2.64657,2645.0,2644.5,0.58554649]
[1723379482134,6.233333,2645.1,2644.5,3.23254649]
[1723379482519,2.6465,2645.0,2644.5,3.23254649]
[1723379483136,2.6465,2645.0,2644.5,0.58554649]
[1723379483309,2.6465,2645.0,2644.5,0.03554649]
[1723379486785,6.233333,2645.1,2644.5,2.68247649]
[1723379487086,6.233333,2645.1,2644.4,0.55]
[1723379487087,7.3,2645.3,2644.6,0.94886883]
[1723379487270,7.3,2645.3,2644.6,0.07562118]
[1723379487478,7.3,2645.3,2644.7,3.23257121]
[1723379487693,9.9462,2645.3,2644.8,0.07561291]
[1723379487986,7.3,2645.3,2644.9,2.6466]
[1723379488206,7.3,2645.3,2645.0,0.03572382]
[1723379488512,7.3,2645.3,2645.0,2.68214382]
[1723379488824,7.3,2645.8,2645.1,2.3946]
[1723379488968,2.64541,2646.1,2645.5,2.64594]
[1723379489172,2.64541,2646.1,2645.6,0.264594]
[1723379489425,2.64541,2646.1,2645.7,0.03528779]
[1723379489583,9.94531,2646.2,2645.7,0.03528779]
[1723379489774,7.3,2646.2,2645.7,5.32679779]
[1723379489972,7.3,2646.2,2645.7,3.24772606]
[1723379490194,7.3,2646.2,2645.7,5.96904384]
[1723379490391,7.3,2646.2,2645.7,3.24771606]
[1723379490593,9.94533,2646.2,2645.7,3.24771606]
[1723379490980,7.3,2646.2,2645.7,3.24771606]
[1723379491182,7.3,2646.2,2645.8,2.64566]
[1723379491387,7.3,2646.2,2645.7,2.64573]
[1723379491580,7.3,2646.2,2645.8,0.03755671]
[1723379491785,7.3,2646.2,2645.7,2.64573]
[1723379491985,7.3,2646.2,2645.8,0.03505293]
[1723379492181,7.3,2646.2,2645.7,2.64573]
[1723379492693,2.6454,2646.1,2645.8,0.03505293]
[1723379492871,2.6454,2646.1,2645.5,2.64593]
[1723379492872,2.64557,2646.0,2645.6,0.55]
[1723379493072,2.64557,2646.0,2645.2,0.55]
[1723379493073,2.64575,2645.8,2645.2,2.64627]
[1723379493279,2.64575,2645.8,2645.1,5.04095]
[1723379493280,2.64575,2645.8,2645.7,0.03503567]
[1723379493474,2.64575,2645.8,2645.3,3.19619]
[1723379494014,2.64586,2645.7,2645.4,0.03517298]
[1723379494222,2.64575,2645.8,2645.4,0.03517298]
[1723379494518,5.29153,2645.8,2645.2,3.19621]
[1723379494721,5.29153,2645.8,2645.5,0.03512721]
[1723379494878,2.64583,2645.7,2645.2,0.55]
[1723379495079,2.64591,2645.6,2645.2,0.55]
[1723379495312,3.174903,2645.8,2645.2,0.55]
[1723379495520,2.64589,2645.7,2645.2,0.55]
[1723379495728,2.64575,2645.8,2645.2,0.55]
[1723379496632,2.64555,2646.0,2645.3,2.64613]
[1723379496633,5.29114,2646.0,2645.3,2.64613]
[1723379496839,9.94532,2646.2,2645.6,2.64584]
[1723379497134,12.59068,2646.2,2645.6,2.64584]
[1723379497334,2.6454,2646.1,2645.6,2.6459]
[1723379497646,2.64546,2646.1,2645.4,2.3946]
[1723379497927,7.3,2646.2,2645.2,0.55]
[1723379497928,2.64586,2645.7,2645.2,0.55]
[1723379498133,3.175014,2645.7,2645.2,0.55]
[1723379498345,4.97995,2645.9,2645.2,0.55]
[1723379498488,2.64565,2645.9,2645.3,2.6461]
[1723379498803,2.64565,2645.9,2645.3,5.29224]
[1723379499000,2.64565,2645.9,2645.3,2.6461]
[1723379499193,2.64565,2645.9,2645.3,5.29224]
[1723379499390,2.64543,2646.1,2645.3,0.584224]
[1723379499700,2.64543,2646.1,2645.5,2.64593]
[1723379500757,9.94531,2646.2,2645.6,5.04043]
[1723379501029,9.94531,2646.2,2645.6,2.3946]
[1723379501030,5.29087,2646.1,2645.6,2.3946]
[1723379501234,2.6454,2646.1,2645.5,2.64593]
[1723379501600,2.64566,2645.9,2645.4,0.55]
[1723379502231,2.6458,2645.7,2645.1,2.64636]
[1723379502550,2.6458,2645.7,2645.2,0.55]
[1723379502899,5.52475,2645.9,2645.3,2.64614]
[1723379503102,2.87908,2645.9,2645.3,2.64614]
[1723379503823,2.64571,2645.8,2645.3,2.64614]
[1723379504036,5.52475,2645.9,2645.3,2.64614]
[1723379505030,2.64565,2645.9,2645.4,0.55]
[1723379505332,9.94539,2646.2,2645.6,2.64587]
[1723379505531,9.94536,2646.2,2645.4,0.55]
[1723379505735,7.3,2646.2,2645.8,2.64569]
[1723379505920,19.77,2646.3,2645.9,2.64557]
[1723379506122,2.64503,2646.5,2646.0,2.64549]
[1723379506335,3.870773,2646.5,2645.9,2.64554]
[1723379506672,2.6451,2646.4,2646.0,0.03998044]
[1723379506989,3.04836395,2646.4,2646.0,0.03998044]
[1723379508008,3.04836395,2646.4,2645.5,2.64594]
[1723379508009,2.6454,2646.1,2645.5,5.29186]
[1723379508341,2.6454,2646.1,2645.6,0.04019165]
[1723379508715,5.29086,2646.1,2645.6,0.04019165]
[1723379509036,0.40326395,2646.4,2645.6,0.04019165]
[1723379509037,2.3125,2646.3,2645.6,0.04019165]
[1723379509241,2.64555,2646.0,2645.5,2.64599]
[1723379509412,2.64555,2646.0,2645.7,0.03716298]
[1723379509736,2.64555,2646.0,2645.3,3.0]
[1723379509939,2.64555,2646.0,2645.8,0.04329961]
[1723379510101,5.2911,2646.0,2645.4,2.64604]
[1723379510441,3.17466,2646.0,2645.3,3.0]
[1723379510756,2.64573,2645.8,2645.5,0.04347123]
[1723379510938,2.64573,2645.8,2645.4,0.59018011]
[1723379511150,2.64583,2645.7,2645.6,0.04007448]
[1723379511448,2.6459,2645.6,2645.1,5.08207]
[1723379511651,2.6459,2645.6,2644.9,2.4357]
[1723379511819,2.6459,2645.6,2645.0,2.6465]
[1723379512138,2.64611,2645.4,2644.8,5.29328]
[1723379512449,2.64611,2645.4,2644.9,2.6466]
[1723379512661,2.6459,2645.6,2644.9,2.6466]
[1723379512952,2.3125,2645.8,2644.8,2.4357]
[1723379513164,2.64591,2645.6,2645.1,2.64638]
[1723379513361,2.64616,2645.4,2644.9,3.19655]
[1723379514344,2.64616,2645.4,2644.9,0.55]
[1723379514669,2.64616,2645.4,2644.5,5.4357]
[1723379514670,2.64638,2645.2,2644.5,5.4357]
[1723379514850,2.64641,2645.1,2644.5,5.08263]
[1723379515363,2.64641,2645.1,2644.5,2.64693]
[1723379516062,2.64641,2645.1,2644.3,5.08285]
[1723379516279,2.64682,2644.7,2644.1,2.64734]
[1723379516737,2.3125,2644.7,2644.1,2.64733]
[1723379516938,4.9593,2644.7,2644.1,2.64733]
[1723379517478,4.9593,2644.7,2643.9,2.64751]
[1723379517479,2.647,2644.5,2643.9,2.64751]
[1723379517627,2.647,2644.5,2643.8,2.64769]
[1723379517831,5.29406,2644.5,2643.8,2.64769]
[1723379518030,2.6472,2644.3,2643.7,5.281047]
[1723379518271,2.6472,2644.3,2643.8,0.03555561]
[1723379518667,2.6472,2644.3,2643.7,2.845347]
[1723379518875,2.6472,2644.3,2643.9,0.03804619]
[1723379518876,4.9597,2644.3,2643.9,0.03804619]
[1723379519041,4.9597,2644.3,2643.8,0.03809529]
[1723379519042,2.64747,2644.1,2643.8,0.03809529]
[1723379519245,2.64747,2644.1,2643.4,5.08373]
[1723379519548,2.64747,2644.1,2643.5,0.54469315]
[1723379520145,4.95976,2644.3,2643.6,2.6479]
[1723379520348,2.64736,2644.2,2643.6,2.6479]
[1723379520553,2.64752,2644.0,2643.7,0.03622847]
[1723379520947,3.407954,2644.2,2643.6,2.64784]
[1723379521148,2.64736,2644.2,2643.8,0.03618264]
[1723379521350,2.64736,2644.2,2643.7,0.03622847]
[1723379521555,2.64736,2644.2,2643.9,0.03613681]
[1723379521741,2.64736,2644.2,2643.8,0.03618264]
[1723379521993,2.6474,2644.1,2644.0,0.03609099]
[1723379522168,3.408126,2644.1,2643.9,0.03613681]
[1723379522342,3.408126,2644.1,2644.0,0.03609099]
[1723379522343,2.6474,2644.1,2644.0,0.03609099]
[1723379522543,2.64755,2644.0,2643.5,0.55]
[1723379523572,2.64766,2643.9,2643.5,0.55]
[1723379523775,2.64766,2643.9,2643.3,2.64818]
[1723379523776,2.64766,2643.9,2643.4,0.55]
[1723379523960,2.64766,2643.9,2643.1,5.64834]
[1723379523961,5.0505,2643.8,2643.1,5.64834]
[1723379524158,5.0505,2643.8,2642.8,5.00984]
[1723379524159,2.64793,2643.6,2642.8,5.00984]
[1723379524358,2.64793,2643.6,2642.9,2.64852]
[1723379524359,2.64802,2643.5,2642.9,2.64852]
[1723379524567,3.153003,2643.6,2642.9,2.64852]
[1723379524568,5.800993,2643.6,2642.9,2.64852]
[1723379524741,2.64793,2643.6,2643.0,2.64849]
[1723379525958,2.64802,2643.5,2642.8,7.65846]
[1723379526158,2.64802,2643.5,2642.8,5.00982]
[1723379526390,2.64813,2643.4,2642.8,5.00982]
[1723379526591,3.417798,2643.6,2643.0,2.64844]
[1723379526788,2.64795,2643.6,2643.1,0.55]
[1723379526960,2.4028,2643.8,2643.1,0.55]
[1723379527161,7.3,2643.9,2643.0,3.27411184]
[1723379527399,2.64792,2643.6,2643.1,0.37750938]
[1723379527556,2.64826,2643.3,2642.7,2.64874]
[1723379527762,2.64838,2643.2,2642.4,2.3612]
[1723379527970,2.64838,2643.2,2642.6,2.64889]
[1723379528563,2.64826,2643.3,2642.7,2.6488]
[1723379529065,7.3,2643.9,2642.5,0.23612]
[1723379529066,2.4028,2643.8,2643.0,2.64848]
[1723379529266,2.4028,2643.8,2642.8,2.64867]
[1723379529564,5.29635,2643.4,2642.8,2.64867]
[1723379529778,2.64817,2643.4,2642.9,0.03747833]
[1723379530387,5.29634,2643.4,2642.9,0.03747833]
[1723379530599,2.64817,2643.4,2642.9,0.03747833]
[1723379530779,5.29634,2643.4,2642.9,0.03747833]
[1723379531877,5.29637,2643.4,2642.9,0.03747833]
[1723379532592,2.64823,2643.3,2642.9,0.03747833]
[1723379533596,2.64831,2643.2,2642.9,0.03747833]
[1723379533980,2.912987,2643.4,2642.7,3.19878]
[1723379533981,5.561177,2643.4,2642.7,3.19878]
[1723379534182,5.29636,2643.4,2643.0,0.0378182]
[1723379534397,2.64836,2643.2,2642.7,0.55]
[1723379534604,2.64836,2643.2,2643.1,0.03777235]
[1723379534773,5.29673,2643.2,2642.7,0.55]
[1723379534983,2.64836,2643.2,2643.1,0.03777235]
[1723379535186,3.4712546,2643.2,2642.7,0.55]
[1723379535502,2.64836,2643.2,2642.7,0.55]
[1723379535818,2.64836,2643.2,2642.8,0.03790993]
[1723379536313,5.05075,2643.6,2642.9,0.03786406]
[1723379536603,5.05075,2643.6,2643.0,2.64844]
[1723379536604,7.69873,2643.6,2643.0,2.64844]
[1723379536811,2.64801,2643.5,2642.8,2.64862]
[1723379537047,2.64811,2643.4,2643.1,0.03787057]
[1723379537179,2.64811,2643.4,2642.9,3.19859]
[1723379537383,2.64811,2643.4,2643.2,0.03782472]
[1723379537601,2.64811,2643.4,2642.9,3.19859]
[1723379537780,27.46901,2643.4,2643.3,0.03777887]
[1723379537994,2.64858,2643.0,2642.2,2.64925]
[1723379538166,2.64871,2642.8,2642.2,2.64925]
[1723379538380,2.4028,2642.9,2642.3,0.03820595]
[1723379538381,2.64902,2642.5,2642.3,0.03820595]
[1723379538598,2.64902,2642.5,2642.0,5.01062]
[1723379538819,2.4028,2642.9,2642.4,0.03816007]
[1723379538820,2.64876,2642.8,2642.4,0.03816007]
[1723379539004,2.64886,2642.7,2642.0,5.511714]
[1723379539207,2.64898,2642.6,2642.0,5.511714]
[1723379539395,2.64898,2642.6,2642.1,0.03829772]
[1723379539795,5.29797,2642.6,2642.1,0.03829772]
[1723379540538,2.64913,2642.4,2642.1,0.03829772]
[1723379540833,2.6493,2642.2,2642.1,0.03829772]
[1723379541032,2.64944,2642.1,2641.6,2.64984]
[1723379541328,2.64944,2642.1,2641.4,5.01127]
[1723379541329,2.64966,2641.9,2641.7,0.03848131]
[1723379541528,2.6497,2641.8,2641.7,0.03848131]
[1723379541699,2.64958,2642.0,2641.2,5.01145]
[1723379541903,2.4028,2642.3,2641.8,2.64969]
[1723379542114,2.4028,2642.3,2641.7,0.0757003]
[1723379542313,2.4028,2642.3,2641.6,5.01103]
[1723379542314,2.64936,2642.2,2641.9,0.03838951]
[1723379542528,2.64936,2642.2,2641.8,0.0384354]
[1723379542836,2.64936,2642.2,2641.6,7.66087]
[1723379542989,2.64952,2642.0,2641.6,2.3612]
[1723379543336,2.64952,2642.0,2640.5,2.75094]
[1723379543337,2.64952,2642.0,2641.7,0.03848131]
[1723379543635,4.96987,2641.9,2641.7,0.03848131]
[1723379543797,4.96987,2641.9,2641.0,2.282]
[1723379543798,0.761939,2641.9,2641.4,2.64916429]
[1723379544133,2.64932,2642.2,2641.5,0.03893109]
[1723379544289,2.64932,2642.2,2641.6,2.64989]
[1723379544845,7.3,2642.4,2642.0,2.64941]
[1723379545130,19.77,2642.5,2642.1,2.64939]
[1723379545325,19.77,2642.5,2642.2,2.64923]
[1723379545500,19.77,2642.5,2642.2,2.68825041]
[1723379545705,19.77,2642.5,2642.2,0.03902041]
[1723379546321,22.41908,2642.5,2642.2,0.03902041]
[1723379546615,2.6492,2642.3,2642.2,0.03902041]
[1723379546815,2.6492,2642.3,2641.7,5.24954]
[1723379547018,2.6492,2642.3,2642.2,0.03896424]
[1723379547227,2.64921,2642.3,2641.8,0.55]
[1723379547435,19.77,2642.5,2641.8,0.55]
[1723379547592,19.77,2642.5,2642.0,2.64945]
[1723379547903,19.77,2642.5,2641.9,2.64953]
[1723379548116,2.64916,2642.4,2641.7,3.19978]
[1723379548439,2.64911,2642.4,2642.0,0.03905602]
[1723379548594,2.64896,2642.6,2641.7,3.19978]
[1723379548595,2.64901,2642.5,2641.9,2.64953]
[1723379548795,2.64911,2642.4,2642.1,0.03905577]
[1723379549036,2.64911,2642.4,2641.8,2.6497]
[1723379549206,2.64911,2642.4,2641.7,3.19974]
[1723379549207,2.3202,2642.3,2641.7,3.19974]
[1723379549392,2.3202,2642.3,2641.9,2.68873755]
[1723379549737,0.3876026,2642.4,2641.9,5.29913]
[1723379550094,4.9692,2642.5,2641.9,2.64954]
[1723379550095,2.3202,2642.5,2641.9,2.64954]
[1723379550523,2.64893,2642.6,2642.0,0.55]
[1723379550695,6.292766,2642.6,2642.0,3.19949]
[1723379551037,2.64901,2642.5,2642.0,3.19949]
[1723379551340,5.29809,2642.5,2642.0,0.55]
[1723379551500,5.93222095,2642.5,2642.0,0.55]
[1723379551837,0.63413095,2642.5,2642.0,3.19947]
[1723379552084,9.94884,2642.7,2642.0,3.19947]
[1723379552085,9.94884,2642.7,2642.1,2.64938]
[1723379552244,12.5977,2642.7,2642.1,2.64938]
[1723379552640,2.6489,2642.6,2642.1,2.64938]
[1723379552836,7.3,2642.7,2642.0,0.55]
[1723379553014,7.3,2642.7,2641.6,2.282]
[1723379553015,2.6491,2642.4,2641.8,2.64966]
[1723379553409,2.6492,2642.3,2641.9,0.0390949]
[1723379553639,2.6492,2642.3,2641.8,2.64966]
[1723379553801,2.6492,2642.3,2641.9,0.03909841]
[1723379554130,5.29846,2642.3,2641.8,2.64966]
[1723379554338,2.64931,2642.2,2641.7,2.64979]
[1723379554558,2.64931,2642.2,2641.9,0.03909841]
[1723379554710,2.64931,2642.2,2641.8,0.5891443]
[1723379554909,2.64931,2642.2,2642.0,0.03905251]
[1723379555103,2.64931,2642.2,2641.5,2.64994]
[1723379555104,2.914411,2642.1,2641.9,0.03909841]
[1723379555404,2.64954,2642.0,2641.5,2.64994]
[1723379555623,0.264931,2642.1,2641.5,2.64992]
[1723379555859,4.96936,2642.4,2641.6,2.64981]
[1723379556002,4.96936,2642.4,2641.8,2.64962]
[1723379556203,2.64936,2642.2,2641.6,2.64981]
[1723379556431,9.94883,2642.7,2641.9,2.64954]
[1723379556432,2.64896,2642.6,2641.9,2.64954]
[1723379556646,2.64896,2642.6,2641.9,4.93154]
[1723379557005,2.64896,2642.6,2642.1,2.6494]
[1723379557534,2.64901,2642.5,2642.0,0.55]
[1723379557711,2.64896,2642.6,2642.1,2.64939]
[1723379558347,2.64906,2642.5,2642.0,0.55]
[1723379558643,2.64937,2642.2,2641.6,2.64985]
[1723379558806,0.496957,2642.1,2641.6,2.64985]
[1723379559002,4.96941,2642.3,2641.7,2.64978]
[1723379559203,4.96941,2642.3,2641.6,2.64988]
[1723379559447,4.96941,2642.3,2641.7,2.64979]
[1723379559701,2.64941,2642.1,2641.5,5.29989]
[1723379559990,5.466351,2642.3,2641.7,2.6498]
[1723379559991,12.766351,2642.3,2641.7,2.6498]
[1723379560551,10.117141,2642.3,2641.7,2.6498]
[1723379561076,3.6610341,2642.2,2641.8,0.03907059]
[1723379561286,3.6610341,2642.2,2641.6,0.55]
[1723379561496,3.6610341,2642.2,2641.9,0.0390247]
[1723379561647,0.61729285,2642.1,2641.6,3.19983]
[1723379561848,2.64942,2642.1,2641.7,0.0391165]
[1723379562579,2.64932,2642.2,2641.7,0.0391165]
[1723379562887,9.6202,2642.3,2641.8,2.64968]
[1723379563088,7.3,2642.3,2641.9,0.0390247]